[Event "Titled Tuesday Blitz April 4 Early 2023"]
[White "Blokhin, Sofia"]
[Black "KorolDimitriy75"]
[WhiteFideId "4508190"]
[WhiteElo "1994"]
[BlackElo "2425"]
[Result "1-0"]
[Round "09"]
[TimeControl "180+2"]
[Date "2023.04.04"]
[WhiteClock "0:00:22"]
[BlackClock "0:00:02"]

1. d4 {[%clk 0:03:00]}  Nf6 {[%clk 0:02:59]} 2. c4 {[%clk 0:03:00]}  c5 {[%clk 0:02:59]} 3. d5 {[%clk 0:03:00]}  b5 {[%clk 0:02:59]} 4. Nc3 {[%clk 0:03:00]}  bxc4 {[%clk 0:02:59]} 5. e4 {[%clk 0:03:00]}  d6 {[%clk 0:02:59]} 6. Bxc4 {[%clk 0:02:58]}  g6 {[%clk 0:03:00]} 7. f4 {[%clk 0:02:55]}  Bg7 {[%clk 0:02:56]} 8. Nf3 {[%clk 0:02:54]}  O-O {[%clk 0:02:55]} 9. O-O {[%clk 0:02:53]}  Ba6 {[%clk 0:02:51]} 10. Bxa6 {[%clk 0:02:48]}  Nxa6 {[%clk 0:02:52]} 11. e5 {[%clk 0:02:47]}  Nd7 {[%clk 0:02:16]} 12. exd6 {[%clk 0:02:28]}  exd6 {[%clk 0:02:17]} 13. Ne4 {[%clk 0:02:25]}  Nf6 {[%clk 0:02:10]} 14. Nxf6+ {[%clk 0:02:18]}  Qxf6 {[%clk 0:02:11]} 15. Kh1 {[%clk 0:02:07]}  Rab8 {[%clk 0:02:09]} 16. Rb1 {[%clk 0:02:03]}  Qf5 {[%clk 0:02:05]} 17. Be3 {[%clk 0:01:51]}  Rxb2 {[%clk 0:01:56]} 18. Rxb2 {[%clk 0:01:48]}  Bxb2 {[%clk 0:01:57]} 19. Qe2 {[%clk 0:01:48]}  Re8 {[%clk 0:01:34]} 20. Qxb2 {[%clk 0:01:32]}  Rxe3 {[%clk 0:01:32]} 21. Qb7 {[%clk 0:01:26]}  Nb4 {[%clk 0:01:25]} 22. Qb8+ {[%clk 0:01:12]}  Kg7 {[%clk 0:01:24]} 23. Qxd6 {[%clk 0:01:12]}  Qxd5 {[%clk 0:01:21]} 24. Qxd5 {[%clk 0:01:06]}  Nxd5 {[%clk 0:01:22]} 25. g3 {[%clk 0:01:03]}  c4 {[%clk 0:01:16]} 26. Ne5 {[%clk 0:01:01]}  c3 {[%clk 0:01:14]} 27. Rc1 {[%clk 0:01:00]}  Re2 {[%clk 0:01:05]} 28. Nf3 {[%clk 0:00:50]}  Rxa2 {[%clk 0:00:56]} 29. Nd4 {[%clk 0:00:46]}  Ne3 {[%clk 0:00:45]} 30. h3 {[%clk 0:00:36]}  c2 {[%clk 0:00:24]} 31. Kg1 {[%clk 0:00:32]}  Rb2 {[%clk 0:00:19]} 32. Kf2 {[%clk 0:00:32]}  Rb1 {[%clk 0:00:18]} 33. Ne2 {[%clk 0:00:30]}  Rxc1 {[%clk 0:00:11]} 34. Nxc1 {[%clk 0:00:31]}  Nd5 {[%clk 0:00:10]} 35. Ke2 {[%clk 0:00:31]}  a5 {[%clk 0:00:08]} 36. Kd2 {[%clk 0:00:31]}  Nb4 {[%clk 0:00:07]} 37. Kc3 {[%clk 0:00:30]}  h5 {[%clk 0:00:07]} 38. Kb3 {[%clk 0:00:28]}  Kf6 {[%clk 0:00:08]} 39. Ka4 {[%clk 0:00:28]}  Kf5 {[%clk 0:00:05]} 40. Kxa5 {[%clk 0:00:28]}  Nd5 {[%clk 0:00:05]} 41. Kb5 {[%clk 0:00:27]}  Ke4 {[%clk 0:00:03]} 42. Kc4 {[%clk 0:00:25]}  Ne3+ {[%clk 0:00:03]} 43. Kc3 {[%clk 0:00:25]}  Kf3 {[%clk 0:00:02]} 44. Kd3 {[%clk 0:00:22]} 1-0


[Site "https://www.chess.com"]

[Event "Titled Tuesday Blitz April 4 Early 2023"]
[White "Torres Hernandez, Leslie Carolin"]
[Black "Carrasco Miranda, Andres"]
[WhiteFideId "8400504"]
[BlackFideId "3405990"]
[WhiteElo "1920"]
[BlackElo "2183"]
[Result "1/2-1/2"]
[Round "09"]
[TimeControl "180+2"]
[Date "2023.04.04"]
[WhiteClock "0:00:04"]
[BlackClock "0:00:04"]

1. e4 {[%clk 0:03:00]}  c5 {[%clk 0:02:57]} 2. Nf3 {[%clk 0:02:59]}  d6 {[%clk 0:02:56]} 3. Bb5+ {[%clk 0:02:57]}  Nd7 {[%clk 0:02:56]} 4. a4 {[%clk 0:02:57]}  Nf6 {[%clk 0:02:55]} 5. Nc3 {[%clk 0:02:57]}  g6 {[%clk 0:02:50]} 6. O-O {[%clk 0:02:56]}  Bg7 {[%clk 0:02:51]} 7. a5 {[%clk 0:02:57]}  a6 {[%clk 0:02:49]} 8. Be2 {[%clk 0:02:56]}  O-O {[%clk 0:02:48]} 9. d4 {[%clk 0:02:56]}  cxd4 {[%clk 0:02:48]} 10. Qxd4 {[%clk 0:02:57]}  Qc7 {[%clk 0:02:44]} 11. Qb4 {[%clk 0:02:50]}  Nc5 {[%clk 0:02:38]} 12. Nd2 {[%clk 0:02:44]}  Bg4 {[%clk 0:02:30]} 13. f3 {[%clk 0:02:41]}  Be6 {[%clk 0:02:28]} 14. Nc4 {[%clk 0:02:41]}  Bxc4 {[%clk 0:02:22]} 15. Qxc4 {[%clk 0:02:34]}  Rac8 {[%clk 0:02:16]} 16. Be3 {[%clk 0:02:28]}  Ne6 {[%clk 0:01:42]} 17. Qxc7 {[%clk 0:02:25]}  Rxc7 {[%clk 0:01:41]} 18. Ra3 {[%clk 0:02:25]}  Rfc8 {[%clk 0:01:40]} 19. Rb3 {[%clk 0:02:23]}  Kf8 {[%clk 0:01:13]} 20. Ra1 {[%clk 0:02:08]}  Nd7 {[%clk 0:01:11]} 21. Bd1 {[%clk 0:01:39]}  Bd4 {[%clk 0:00:58]} 22. Nd5 {[%clk 0:01:32]}  Bxe3+ {[%clk 0:00:56]} 23. Rxe3 {[%clk 0:01:32]}  Rc6 {[%clk 0:00:52]} 24. c3 {[%clk 0:01:28]}  Nf6 {[%clk 0:00:48]} 25. Nxf6 {[%clk 0:01:23]}  exf6 {[%clk 0:00:49]} 26. Kf2 {[%clk 0:01:16]}  Ke7 {[%clk 0:00:49]} 27. g3 {[%clk 0:01:14]}  h5 {[%clk 0:00:49]} 28. Bb3 {[%clk 0:01:10]}  Nc5 {[%clk 0:00:47]} 29. Bd5 {[%clk 0:01:08]}  R6c7 {[%clk 0:00:46]} 30. h4 {[%clk 0:00:33]}  Ne6 {[%clk 0:00:45]} 31. Ree1 {[%clk 0:00:28]}  g5 {[%clk 0:00:41]} 32. Rh1 {[%clk 0:00:25]}  Rg8 {[%clk 0:00:36]} 33. hxg5 {[%clk 0:00:21]}  fxg5 {[%clk 0:00:31]} 34. Rxh5 {[%clk 0:00:21]}  Rg7 {[%clk 0:00:22]} 35. Rah1 {[%clk 0:00:21]}  Nc5 {[%clk 0:00:16]} 36. Ke3 {[%clk 0:00:18]}  Na4 {[%clk 0:00:15]} 37. Rh7 {[%clk 0:00:17]}  Kf6 {[%clk 0:00:13]} 38. R1h6+ {[%clk 0:00:16]}  Rg6 {[%clk 0:00:13]} 39. Rxg6+ {[%clk 0:00:16]}  Kxg6 {[%clk 0:00:13]} 40. Rh8 {[%clk 0:00:11]}  Nxb2 {[%clk 0:00:12]} 41. Kd4 {[%clk 0:00:11]}  Nd1 {[%clk 0:00:11]} 42. c4 {[%clk 0:00:06]}  Nb2 {[%clk 0:00:10]} 43. Rb8 {[%clk 0:00:06]}  Na4 {[%clk 0:00:03]} 44. Rxb7 {[%clk 0:00:06]}  Rxb7 {[%clk 0:00:03]} 45. Bxb7 {[%clk 0:00:07]}  Nc5 {[%clk 0:00:03]} 46. Bc6 {[%clk 0:00:07]}  Kf6 {[%clk 0:00:03]} 47. Kd5 {[%clk 0:00:07]}  Ke7 {[%clk 0:00:03]} 48. f4 {[%clk 0:00:05]}  Nb3 {[%clk 0:00:03]} 49. Bb7 {[%clk 0:00:02]}  Nxa5 {[%clk 0:00:04]} 50. Bxa6 {[%clk 0:00:03]}  gxf4 {[%clk 0:00:04]} 51. gxf4 {[%clk 0:00:03]}  Nb3 {[%clk 0:00:05]} 52. Bb5 {[%clk 0:00:03]}  Nd2 {[%clk 0:00:04]} 53. e5 {[%clk 0:00:03]}  dxe5 {[%clk 0:00:03]} 54. fxe5 {[%clk 0:00:04]}  Nb3 {[%clk 0:00:03]} 55. c5 {[%clk 0:00:04]}  f6 {[%clk 0:00:04]} 56. exf6+ {[%clk 0:00:03]}  Kxf6 {[%clk 0:00:04]} 57. Kd6 {[%clk 0:00:04]}  Nxc5 {[%clk 0:00:04]} 1/2-1/2


[Site "https://www.chess.com"]

[Event "Titled Tuesday Blitz April 4 Early 2023"]
[White "Matute Escobar, Roxanny"]
[Black "Hrabinska, Myroslava"]
[WhiteFideId "3926028"]
[BlackFideId "14109190"]
[WhiteElo "1844"]
[BlackElo "2039"]
[Result "1-0"]
[Round "09"]
[TimeControl "180+2"]
[Date "2023.04.04"]
[WhiteClock "0:00:07"]
[BlackClock "0:00:01"]

1. e4 {[%clk 0:02:58]}  d5 {[%clk 0:02:57]} 2. exd5 {[%clk 0:02:58]}  Qxd5 {[%clk 0:02:58]} 3. Nc3 {[%clk 0:02:58]}  Qa5 {[%clk 0:02:57]} 4. Bc4 {[%clk 0:02:57]}  Nc6 {[%clk 0:02:55]} 5. d4 {[%clk 0:02:57]}  Bf5 {[%clk 0:02:51]} 6. Bd2 {[%clk 0:02:51]}  Nxd4 {[%clk 0:02:51]} 7. Nd5 {[%clk 0:02:29]}  Qc5 {[%clk 0:02:47]} 8. Ne3 {[%clk 0:02:13]}  Nxc2+ {[%clk 0:02:41]} 9. Nxc2 {[%clk 0:02:12]}  Qxc4 {[%clk 0:02:41]} 10. Ne3 {[%clk 0:02:11]}  Qe4 {[%clk 0:02:23]} 11. Ne2 {[%clk 0:01:49]}  Nh6 {[%clk 0:01:40]} 12. O-O {[%clk 0:00:40]}  e6 {[%clk 0:01:32]} 13. Qb3 {[%clk 0:00:37]}  Bd6 {[%clk 0:01:26]} 14. Rac1 {[%clk 0:00:27]}  O-O {[%clk 0:01:25]} 15. Ng3 {[%clk 0:00:19]}  Bxg3 {[%clk 0:01:24]} 16. hxg3 {[%clk 0:00:19]}  Rad8 {[%clk 0:01:12]} 17. Bb4 {[%clk 0:00:18]}  Rfe8 {[%clk 0:01:05]} 18. Rxc7 {[%clk 0:00:18]}  a6 {[%clk 0:00:44]} 19. Re1 {[%clk 0:00:18]}  b5 {[%clk 0:00:41]} 20. Nxf5 {[%clk 0:00:17]}  Qxf5 {[%clk 0:00:40]} 21. Qf3 {[%clk 0:00:17]}  Rd3 {[%clk 0:00:30]} 22. Qc6 {[%clk 0:00:15]}  Red8 {[%clk 0:00:25]} 23. Rc8 {[%clk 0:00:15]}  Ng4 {[%clk 0:00:22]} 24. Rxd8+ {[%clk 0:00:14]}  Rxd8 {[%clk 0:00:21]} 25. f3 {[%clk 0:00:11]}  Nf6 {[%clk 0:00:19]} 26. Be7 {[%clk 0:00:11]}  Rb8 {[%clk 0:00:14]} 27. Qxa6 {[%clk 0:00:10]}  Qc2 {[%clk 0:00:10]} 28. Qd6 {[%clk 0:00:09]}  Rc8 {[%clk 0:00:08]} 29. Bxf6 {[%clk 0:00:10]}  gxf6 {[%clk 0:00:08]} 30. Qd4 {[%clk 0:00:10]}  Qc6 {[%clk 0:00:07]} 31. Qxf6 {[%clk 0:00:10]}  Ra8 {[%clk 0:00:06]} 32. a3 {[%clk 0:00:10]}  Qc2 {[%clk 0:00:06]} 33. Qg5+ {[%clk 0:00:07]}  Kf8 {[%clk 0:00:06]} 34. Rc1 {[%clk 0:00:07]}  Qxb2 {[%clk 0:00:05]} 35. Rc7 {[%clk 0:00:07]}  Qg7 {[%clk 0:00:04]} 36. Qc5+ {[%clk 0:00:06]}  Kg8 {[%clk 0:00:04]} 37. Qxb5 {[%clk 0:00:07]}  Qa1+ {[%clk 0:00:04]} 38. Kh2 {[%clk 0:00:07]}  Qxa3 {[%clk 0:00:03]} 39. Qg5+ {[%clk 0:00:07]}  Kf8 {[%clk 0:00:01]} 40. Qf6 {[%clk 0:00:07]} 1-0


[Site "https://www.chess.com"]

[Event "Titled Tuesday Blitz April 4 Early 2023"]
[White "Floresvillar Gonzalez, Luis Migu"]
[Black "Winkels, Marcel"]
[WhiteFideId "5100542"]
[BlackFideId "1003887"]
[WhiteElo "2040"]
[BlackElo "1900"]
[Result "0-1"]
[Round "09"]
[TimeControl "180+2"]
[Date "2023.04.04"]
[WhiteClock "0:00:03"]
[BlackClock "0:01:07"]

1. e4 {[%clk 0:03:00]}  c5 {[%clk 0:02:59]} 2. d4 {[%clk 0:02:59]}  cxd4 {[%clk 0:02:58]} 3. c3 {[%clk 0:03:00]}  dxc3 {[%clk 0:02:58]} 4. Nxc3 {[%clk 0:03:00]}  Nc6 {[%clk 0:02:58]} 5. Nf3 {[%clk 0:02:55]}  e6 {[%clk 0:02:58]} 6. Bc4 {[%clk 0:02:54]}  Qc7 {[%clk 0:02:58]} 7. Qe2 {[%clk 0:02:51]}  Nf6 {[%clk 0:02:59]} 8. e5 {[%clk 0:02:47]}  Ng4 {[%clk 0:02:58]} 9. Bf4 {[%clk 0:02:46]}  a6 {[%clk 0:02:45]} 10. h3 {[%clk 0:02:42]}  Nh6 {[%clk 0:02:44]} 11. Bxh6 {[%clk 0:02:38]}  gxh6 {[%clk 0:02:43]} 12. Ne4 {[%clk 0:02:16]}  Be7 {[%clk 0:02:33]} 13. Nf6+ {[%clk 0:02:06]}  Bxf6 {[%clk 0:02:32]} 14. exf6 {[%clk 0:02:06]}  Qa5+ {[%clk 0:02:28]} 15. Kf1 {[%clk 0:01:39]}  b5 {[%clk 0:02:23]} 16. Bb3 {[%clk 0:01:23]}  Bb7 {[%clk 0:02:17]} 17. Rd1 {[%clk 0:01:19]}  Qc7 {[%clk 0:02:08]} 18. Ke1 {[%clk 0:01:17]}  Qf4 {[%clk 0:02:01]} 19. Qd2 {[%clk 0:00:53]}  Qxd2+ {[%clk 0:01:53]} 20. Rxd2 {[%clk 0:00:52]}  d5 {[%clk 0:01:53]} 21. Kd1 {[%clk 0:00:24]}  Na5 {[%clk 0:01:47]} 22. Bc2 {[%clk 0:00:20]}  Nc4 {[%clk 0:01:47]} 23. Re2 {[%clk 0:00:18]}  Nxb2+ {[%clk 0:01:47]} 24. Kc1 {[%clk 0:00:18]}  Nc4 {[%clk 0:01:47]} 25. Rd1 {[%clk 0:00:16]}  O-O {[%clk 0:01:43]} 26. Bb3 {[%clk 0:00:14]}  Rac8 {[%clk 0:01:42]} 27. Bxc4 {[%clk 0:00:11]}  Rxc4+ {[%clk 0:01:41]} 28. Kb2 {[%clk 0:00:10]}  Rfc8 {[%clk 0:01:40]} 29. Ne5 {[%clk 0:00:09]}  Rb4+ {[%clk 0:01:37]} 30. Ka1 {[%clk 0:00:07]}  d4 {[%clk 0:01:28]} 31. Ng4 {[%clk 0:00:06]}  Bd5 {[%clk 0:01:24]} 32. Nxh6+ {[%clk 0:00:05]}  Kf8 {[%clk 0:01:24]} 33. Red2 {[%clk 0:00:04]}  e5 {[%clk 0:01:20]} 34. Ng4 {[%clk 0:00:03]}  Re8 {[%clk 0:01:07]} 0-1


[Site "https://www.chess.com"]

[Event "Titled Tuesday Blitz April 4 Early 2023"]
[White "Ward, Ieuan C"]
[Black "Svicevic, Rastko"]
[WhiteFideId "406627"]
[BlackFideId "916315"]
[WhiteElo "2282"]
[BlackElo "2071"]
[Result "0-1"]
[Round "09"]
[TimeControl "180+2"]
[Date "2023.04.04"]
[WhiteClock "0:01:49"]
[BlackClock "0:01:42"]

1. d4 {[%clk 0:03:00]}  c6 {[%clk 0:03:00]} 2. e4 {[%clk 0:02:59]}  d5 {[%clk 0:03:01]} 3. Nc3 {[%clk 0:02:59]}  dxe4 {[%clk 0:03:01]} 4. Nxe4 {[%clk 0:03:00]}  Nf6 {[%clk 0:03:01]} 5. Nxf6+ {[%clk 0:03:00]}  exf6 {[%clk 0:03:02]} 6. Nf3 {[%clk 0:03:01]}  Bd6 {[%clk 0:03:03]} 7. Bd3 {[%clk 0:03:00]}  O-O {[%clk 0:03:03]} 8. O-O {[%clk 0:02:58]}  Bg4 {[%clk 0:03:03]} 9. Be3 {[%clk 0:02:53]}  Nd7 {[%clk 0:03:02]} 10. h3 {[%clk 0:02:53]}  Bh5 {[%clk 0:03:02]} 11. c3 {[%clk 0:02:53]}  Qc7 {[%clk 0:03:00]} 12. Re1 {[%clk 0:02:51]}  Rfe8 {[%clk 0:02:55]} 13. g4 {[%clk 0:02:42]}  Bg6 {[%clk 0:02:53]} 14. Bxg6 {[%clk 0:02:43]}  hxg6 {[%clk 0:02:52]} 15. Qd2 {[%clk 0:02:37]}  f5 {[%clk 0:02:50]} 16. Qd3 {[%clk 0:02:15]}  fxg4 {[%clk 0:02:37]} 17. hxg4 {[%clk 0:02:16]}  Nf6 {[%clk 0:02:37]} 18. g5 {[%clk 0:02:15]}  Nh5 {[%clk 0:02:37]} 19. c4 {[%clk 0:02:10]}  Bf4 {[%clk 0:02:36]} 20. d5 {[%clk 0:02:04]}  Qd7 {[%clk 0:02:32]} 21. Nh2 {[%clk 0:01:49]}  Qh3 {[%clk 0:01:42]} 0-1


[Site "https://www.chess.com"]

[Event "Titled Tuesday Blitz April 4 Early 2023"]
[White "Akhayan, Ruben"]
[Black "Lukovic, Vladimir"]
[WhiteFideId "204439"]
[BlackFideId "942952"]
[WhiteElo "2155"]
[BlackElo "2391"]
[Result "0-1"]
[Round "09"]
[TimeControl "180+2"]
[Date "2023.04.04"]
[WhiteClock "0:00:19"]
[BlackClock "0:00:18"]

1. d4 {[%clk 0:02:58]}  d5 {[%clk 0:02:59]} 2. c4 {[%clk 0:02:58]}  c6 {[%clk 0:02:59]} 3. Nf3 {[%clk 0:02:58]}  Nf6 {[%clk 0:02:58]} 4. e3 {[%clk 0:02:58]}  g6 {[%clk 0:02:56]} 5. Nbd2 {[%clk 0:02:58]}  Bg7 {[%clk 0:02:56]} 6. Bd3 {[%clk 0:02:58]}  O-O {[%clk 0:02:57]} 7. O-O {[%clk 0:02:59]}  a6 {[%clk 0:02:51]} 8. b3 {[%clk 0:02:58]}  Bg4 {[%clk 0:02:50]} 9. Bb2 {[%clk 0:02:58]}  Nbd7 {[%clk 0:02:49]} 10. h3 {[%clk 0:02:58]}  Bxf3 {[%clk 0:02:49]} 11. Nxf3 {[%clk 0:02:58]}  e6 {[%clk 0:02:44]} 12. Re1 {[%clk 0:02:49]}  Re8 {[%clk 0:02:42]} 13. Qe2 {[%clk 0:02:45]}  Ne4 {[%clk 0:02:39]} 14. Bxe4 {[%clk 0:02:42]}  dxe4 {[%clk 0:02:40]} 15. Nd2 {[%clk 0:02:42]}  f5 {[%clk 0:02:40]} 16. c5 {[%clk 0:02:35]}  e5 {[%clk 0:02:33]} 17. Nc4 {[%clk 0:02:33]}  exd4 {[%clk 0:02:33]} 18. Bxd4 {[%clk 0:02:33]}  Bxd4 {[%clk 0:02:29]} 19. exd4 {[%clk 0:02:32]}  b5 {[%clk 0:02:26]} 20. Nd6 {[%clk 0:02:32]}  Re6 {[%clk 0:02:26]} 21. a4 {[%clk 0:02:24]}  Nf6 {[%clk 0:02:18]} 22. axb5 {[%clk 0:02:21]}  axb5 {[%clk 0:02:19]} 23. Rxa8 {[%clk 0:02:20]}  Qxa8 {[%clk 0:02:19]} 24. Qb2 {[%clk 0:02:16]}  Nd5 {[%clk 0:02:10]} 25. Ra1 {[%clk 0:02:15]}  Qd8 {[%clk 0:01:55]} 26. Qa3 {[%clk 0:02:14]}  f4 {[%clk 0:01:46]} 27. Qa7 {[%clk 0:02:12]}  Re7 {[%clk 0:01:41]} 28. Qa8 {[%clk 0:01:39]}  Qxa8 {[%clk 0:01:39]} 29. Rxa8+ {[%clk 0:01:39]}  Kg7 {[%clk 0:01:40]} 30. Re8 {[%clk 0:01:40]}  Rxe8 {[%clk 0:01:12]} 31. Nxe8+ {[%clk 0:01:38]}  Kf8 {[%clk 0:01:13]} 32. Nd6 {[%clk 0:01:38]}  Nf6 {[%clk 0:01:14]} 33. d5 {[%clk 0:01:30]}  Nxd5 {[%clk 0:01:08]} 34. Nxe4 {[%clk 0:01:30]}  Ke7 {[%clk 0:01:04]} 35. Kf1 {[%clk 0:01:28]}  Ke6 {[%clk 0:01:04]} 36. Ke2 {[%clk 0:01:28]}  Ke5 {[%clk 0:01:04]} 37. Ng5 {[%clk 0:01:27]}  Kd4 {[%clk 0:01:00]} 38. Nxh7 {[%clk 0:01:22]}  Kc3 {[%clk 0:00:58]} 39. Nf8 {[%clk 0:01:15]}  Ne7 {[%clk 0:00:57]} 40. Kf3 {[%clk 0:01:06]}  Kxb3 {[%clk 0:00:56]} 41. Kxf4 {[%clk 0:01:06]}  Kc4 {[%clk 0:00:53]} 42. Nd7 {[%clk 0:01:01]}  b4 {[%clk 0:00:48]} 43. Nb6+ {[%clk 0:01:00]}  Kxc5 {[%clk 0:00:46]} 44. Na4+ {[%clk 0:01:00]}  Kb5 {[%clk 0:00:42]} 45. Nb2 {[%clk 0:01:00]}  c5 {[%clk 0:00:43]} 46. Ke3 {[%clk 0:00:56]}  c4 {[%clk 0:00:43]} 47. Kd4 {[%clk 0:00:56]}  c3 {[%clk 0:00:42]} 48. Nd3 {[%clk 0:00:57]}  c2 {[%clk 0:00:40]} 49. Nc1 {[%clk 0:00:55]}  Ka4 {[%clk 0:00:27]} 50. Kc4 {[%clk 0:00:49]}  Nd5 {[%clk 0:00:21]} 51. Nd3 {[%clk 0:00:25]}  Nf4 {[%clk 0:00:19]} 52. Nc5+ {[%clk 0:00:22]}  Ka3 {[%clk 0:00:19]} 53. Nb3 {[%clk 0:00:22]}  Nxg2 {[%clk 0:00:18]} 54. Nc1 {[%clk 0:00:20]}  Nf4 {[%clk 0:00:18]} 55. h4 {[%clk 0:00:20]}  Kb2 {[%clk 0:00:18]} 56. Nd3+ {[%clk 0:00:20]}  Nxd3 {[%clk 0:00:18]} 57. Kxd3 {[%clk 0:00:19]}  c1=Q {[%clk 0:00:18]} 0-1


[Site "https://www.chess.com"]

[Event "Titled Tuesday Blitz April 4 Early 2023"]
[White "Odeh, Kenneth"]
[Black "Reefat, Bin-Sattar"]
[WhiteFideId "8500142"]
[BlackFideId "10200207"]
[WhiteElo "2031"]
[BlackElo "2462"]
[Result "0-1"]
[Round "09"]
[TimeControl "180+2"]
[Date "2023.04.04"]
[WhiteClock "0:00:39"]
[BlackClock "0:01:33"]

1. e4 {[%clk 0:03:00]}  e6 {[%clk 0:02:58]} 2. d4 {[%clk 0:03:00]}  d5 {[%clk 0:02:58]} 3. exd5 {[%clk 0:02:59]}  exd5 {[%clk 0:02:58]} 4. Nf3 {[%clk 0:02:59]}  Bd6 {[%clk 0:02:55]} 5. Bd3 {[%clk 0:02:59]}  Nc6 {[%clk 0:02:54]} 6. c3 {[%clk 0:02:59]}  Bg4 {[%clk 0:02:53]} 7. O-O {[%clk 0:02:59]}  Nge7 {[%clk 0:02:53]} 8. Bg5 {[%clk 0:02:58]}  f6 {[%clk 0:02:53]} 9. Bh4 {[%clk 0:02:58]}  Qd7 {[%clk 0:02:53]} 10. Nbd2 {[%clk 0:02:57]}  h5 {[%clk 0:02:50]} 11. Bg3 {[%clk 0:02:45]}  h4 {[%clk 0:02:46]} 12. Bxd6 {[%clk 0:02:42]}  Qxd6 {[%clk 0:02:45]} 13. h3 {[%clk 0:02:41]}  Bf5 {[%clk 0:02:37]} 14. Bxf5 {[%clk 0:02:39]}  Nxf5 {[%clk 0:02:36]} 15. Re1+ {[%clk 0:02:39]}  Nce7 {[%clk 0:02:36]} 16. c4 {[%clk 0:02:34]}  c6 {[%clk 0:02:35]} 17. cxd5 {[%clk 0:02:32]}  cxd5 {[%clk 0:02:29]} 18. Qa4+ {[%clk 0:02:31]}  Qd7 {[%clk 0:02:28]} 19. Qxd7+ {[%clk 0:02:30]}  Kxd7 {[%clk 0:02:28]} 20. Rac1 {[%clk 0:02:24]}  b6 {[%clk 0:02:27]} 21. Rc3 {[%clk 0:02:22]}  Rac8 {[%clk 0:02:27]} 22. Rec1 {[%clk 0:02:21]}  g5 {[%clk 0:02:26]} 23. Rxc8 {[%clk 0:02:19]}  Nxc8 {[%clk 0:02:21]} 24. Kf1 {[%clk 0:02:10]}  Ncd6 {[%clk 0:02:19]} 25. Ke2 {[%clk 0:01:55]}  Re8+ {[%clk 0:02:02]} 26. Kd3 {[%clk 0:01:55]}  Ne4 {[%clk 0:02:02]} 27. Rf1 {[%clk 0:01:46]}  Nxd2 {[%clk 0:02:01]} 28. Kxd2 {[%clk 0:01:43]}  Re4 {[%clk 0:02:02]} 29. Kd3 {[%clk 0:01:40]}  g4 {[%clk 0:01:59]} 30. hxg4 {[%clk 0:01:38]}  Rxg4 {[%clk 0:01:58]} 31. Rh1 {[%clk 0:01:24]}  Kd6 {[%clk 0:01:54]} 32. Rh2 {[%clk 0:01:16]}  Rf4 {[%clk 0:01:51]} 33. Rh3 {[%clk 0:01:12]}  Rg4 {[%clk 0:01:49]} 34. Rh2 {[%clk 0:01:12]}  a5 {[%clk 0:01:45]} 35. Kc3 {[%clk 0:01:07]}  Re4 {[%clk 0:01:41]} 36. Kd3 {[%clk 0:01:04]}  b5 {[%clk 0:01:41]} 37. b3 {[%clk 0:00:58]}  b4 {[%clk 0:01:41]} 38. Rh3 {[%clk 0:00:55]}  Rg4 {[%clk 0:01:38]} 39. Rh2 {[%clk 0:00:55]}  Kc6 {[%clk 0:01:38]} 40. g3 {[%clk 0:00:45]}  hxg3 {[%clk 0:01:37]} 41. fxg3 {[%clk 0:00:43]}  Rxg3 {[%clk 0:01:36]} 42. Ke2 {[%clk 0:00:43]}  Kd6 {[%clk 0:01:34]} 43. Rh6 {[%clk 0:00:39]}  Nxh6 {[%clk 0:01:33]} 0-1


[Site "https://www.chess.com"]

[Event "Titled Tuesday Blitz April 4 Early 2023"]
[White "Brahami, Lamine"]
[Black "Sanchez, Robert"]
[WhiteFideId "7905637"]
[BlackFideId "2034360"]
[WhiteElo "2088"]
[BlackElo "2026"]
[Result "1-0"]
[Round "09"]
[TimeControl "180+2"]
[Date "2023.04.04"]
[WhiteClock "0:01:43"]
[BlackClock "0:02:21"]

1. d4 {[%clk 0:02:31]}  Nf6 {[%clk 0:02:47]} 2. Nf3 {[%clk 0:02:29]}  g6 {[%clk 0:02:46]} 3. g3 {[%clk 0:02:29]}  Bg7 {[%clk 0:02:46]} 4. Bg2 {[%clk 0:02:30]}  d6 {[%clk 0:02:47]} 5. O-O {[%clk 0:02:30]}  O-O {[%clk 0:02:47]} 6. c4 {[%clk 0:02:31]}  Nbd7 {[%clk 0:02:48]} 7. Nc3 {[%clk 0:02:31]}  e5 {[%clk 0:02:48]} 8. d5 {[%clk 0:02:28]}  h6 {[%clk 0:02:45]} 9. e4 {[%clk 0:02:20]}  Ne8 {[%clk 0:02:42]} 10. Ne1 {[%clk 0:02:16]}  f5 {[%clk 0:02:42]} 11. f3 {[%clk 0:02:15]}  f4 {[%clk 0:02:40]} 12. Nd3 {[%clk 0:02:06]}  fxg3 {[%clk 0:02:38]} 13. hxg3 {[%clk 0:02:06]}  Ndf6 {[%clk 0:02:33]} 14. c5 {[%clk 0:01:58]}  Nh5 {[%clk 0:02:32]} 15. Kf2 {[%clk 0:01:55]}  Nef6 {[%clk 0:02:27]} 16. Ne2 {[%clk 0:01:43]}  Nxe4+ {[%clk 0:02:21]} 1-0


[Site "https://www.chess.com"]

[Event "Titled Tuesday Blitz April 4 Early 2023"]
[White "Korobov, Anton"]
[Black "Firouzja, Alireza"]
[WhiteFideId "14105730"]
[BlackFideId "12573981"]
[WhiteElo "2638"]
[BlackElo "2904"]
[Result "1-0"]
[Round "10"]
[TimeControl "180+2"]
[Date "2023.04.04"]
[WhiteClock "0:00:39"]
[BlackClock "0:00:02"]

1. d4 {[%clk 0:03:00]}  d5 {[%clk 0:02:59]} 2. c4 {[%clk 0:02:59]}  c6 {[%clk 0:03:00]} 3. Nc3 {[%clk 0:02:58]}  Nf6 {[%clk 0:03:00]} 4. cxd5 {[%clk 0:02:57]}  cxd5 {[%clk 0:03:00]} 5. Bg5 {[%clk 0:02:58]}  Nc6 {[%clk 0:02:53]} 6. Bxf6 {[%clk 0:02:56]}  gxf6 {[%clk 0:02:51]} 7. e3 {[%clk 0:02:56]}  e6 {[%clk 0:02:45]} 8. Bd3 {[%clk 0:02:54]}  a6 {[%clk 0:02:45]} 9. Rc1 {[%clk 0:02:51]}  Bd7 {[%clk 0:02:45]} 10. f4 {[%clk 0:02:49]}  Bd6 {[%clk 0:02:37]} 11. Nf3 {[%clk 0:02:48]}  Qa5 {[%clk 0:02:10]} 12. O-O {[%clk 0:02:43]}  Ne7 {[%clk 0:02:00]} 13. Rf2 {[%clk 0:02:17]}  Rc8 {[%clk 0:01:58]} 14. Rfc2 {[%clk 0:02:16]}  Rc6 {[%clk 0:01:50]} 15. a3 {[%clk 0:02:13]}  h6 {[%clk 0:01:32]} 16. Nd2 {[%clk 0:02:08]}  f5 {[%clk 0:01:26]} 17. Nb3 {[%clk 0:01:50]}  Qb6 {[%clk 0:01:25]} 18. Nc5 {[%clk 0:01:45]}  Rxc5 {[%clk 0:00:59]} 19. dxc5 {[%clk 0:01:44]}  Qxc5 {[%clk 0:01:00]} 20. Qd2 {[%clk 0:01:30]}  d4 {[%clk 0:00:47]} 21. Ne4 {[%clk 0:01:22]}  Qb6 {[%clk 0:00:40]} 22. Nf6+ {[%clk 0:01:15]}  Kd8 {[%clk 0:00:37]} 23. e4 {[%clk 0:01:16]}  fxe4 {[%clk 0:00:22]} 24. Nxe4 {[%clk 0:01:17]}  Nd5 {[%clk 0:00:20]} 25. Nxd6 {[%clk 0:01:06]}  Qxd6 {[%clk 0:00:21]} 26. Be4 {[%clk 0:01:06]}  Nxf4 {[%clk 0:00:14]} 27. Bxb7 {[%clk 0:01:02]}  Ke7 {[%clk 0:00:14]} 28. Rc7 {[%clk 0:00:59]}  d3 {[%clk 0:00:11]} 29. Bf3 {[%clk 0:00:52]}  Rg8 {[%clk 0:00:09]} 30. Kh1 {[%clk 0:00:51]}  Rg5 {[%clk 0:00:07]} 31. R1c6 {[%clk 0:00:43]}  Qe5 {[%clk 0:00:06]} 32. Qb4+ {[%clk 0:00:42]}  Kf6 {[%clk 0:00:06]} 33. Rxd7 {[%clk 0:00:42]}  Kg7 {[%clk 0:00:03]} 34. Rc8 {[%clk 0:00:40]}  Kh7 {[%clk 0:00:02]} 35. Rxf7+ {[%clk 0:00:39]} 1-0


[Site "https://www.chess.com"]